Workbook

Sheet حساب قيمة العملية
A1: البيان | B1: العدد | C1: القيمة | D1: مدة الإقامة
A2: قيمة المستلزمات | C2: =SUM(C3:C18) -> 131
A3: قفازات جراحية | B3: 2 | C3: =IFERROR(VLOOKUP(A3,المستلزمات!$Z$2:$AA$250,2,0)*B3,"") -> 10
A4: كاب وماسك | B4: 3 | C4: =IFERROR(VLOOKUP(A4,المستلزمات!$Z$2:$AA$250,2,0)*B4,"") -> 9
A5: جلايسين | B5: 2 | C5: =IFERROR(VLOOKUP(A5,المستلزمات!$Z$2:$AA$250,2,0)*B5,"") -> 78
A6: ماكنتوش | B6: 3 | C6: =IFERROR(VLOOKUP(A6,المستلزمات!$Z$2:$AA$250,2,0)*B6,"") -> 12
A7: بيتادين 100 سم | B7: 2 | C7: =IFERROR(VLOOKUP(A7,المستلزمات!$Z$2:$AA$250,2,0)*B7,"") -> 18
A8: سيدكس 1000 سم | B8: 1 | C8: =IFERROR(VLOOKUP(A8,المستلزمات!$Z$2:$AA$250,2,0)*B8,"") -> 4
C9: =IFERROR(VLOOKUP(A9,المستلزمات!$Z$2:$AA$250,2,0)*B9,"") -> 
C10: =IFERROR(VLOOKUP(A10,المستلزمات!$Z$2:$AA$250,2,0)*B10,"") -> 
C11: =IFERROR(VLOOKUP(A11,المستلزمات!$Z$2:$AA$250,2,0)*B11,"") -> 
C12: =IFERROR(VLOOKUP(A12,المستلزمات!$Z$2:$AA$250,2,0)*B12,"") -> 
C13: =IFERROR(VLOOKUP(A13,المستلزمات!$Z$2:$AA$250,2,0)*B13,"") -> 
C14: =IFERROR(VLOOKUP(A14,المستلزمات!$Z$2:$AA$250,2,0)*B14,"") -> 
C15: =IFERROR(VLOOKUP(A15,المستلزمات!$Z$2:$AA$250,2,0)*B15,"") -> 
C16: =IFERROR(VLOOKUP(A16,المستلزمات!$Z$2:$AA$250,2,0)*B16,"") -> 
C17: =IFERROR(VLOOKUP(A17,المستلزمات!$Z$2:$AA$250,2,0)*B17,"") -> 
C18: =IFERROR(VLOOKUP(A18,المستلزمات!$Z$2:$AA$250,2,0)*B18,"") -> 
A19: فتح غرفة العمليات | B19: عملية صغرى | C19: =IFERROR(VLOOKUP(B19,'فتح الغرفة'!$A$5:$B$100,2,0),"") -> 200
A20: الاقامة | B20: 407 | C20: =IFERROR(VLOOKUP(B20,'الاقامة '!$B$6:$C$240,2,0),"")*D20 -> 360 | D20: 3
A21: الإجمالى | C21: =SUM(C19:C20)+C2 -> 691
A22: 14% ضريبة | C22: =C21*14% -> 96.74
A23: الاجمالى بعد الضريبة | C23: =C21+C22 -> 787.74
A24: الدمغة | C24: =IF($C$23<=1000,10,IF(AND($C$23>1000,$C$23<=1500),15,IF(AND($C$23>1500,$C$23<=2000),20,IF(AND($C$23>2000,$C$23<=2500),25,IF(AND($C$23>2500,$C$23<=3000),30,IF(AND($C$23>3000,$C$23<=3500),35,IF(AND($C$23>3500,$C$23<=4000),40,IF(AND($C$23>4000,$C$23<=4500),45,IF(AND($C$23>4500,$C$23<=5000),50,IF(AND($C$23>5000,$C$23<=5500),55,60)))))))))) -> 10
A25: جهاز الاشعة | B25: =$B$19 -> عملية صغرى | C25: =IFERROR(VLOOKUP(B25,'جهاز الاشعة'!$A$7:$B$110,2,0),"") -> 190
A26: الاجمالى الكلي | C26: =SUM(C23:C25) -> 987.74

Sheet المستلزمات
Z2: كاب وماسك | AA2: 3
Z3: قفازات جراحية | AA3: 5
Z4: ماكنتوش | AA4: 4
A5: الصنف | B5: عدد | C5: السعر | D5: القيمة | E5: الصنف | F5: عدد | G5: السعر | H5: القيمة | I5: الصنف | J5: عدد | K5: السعر | L5: القيمة | M5: الصنف | N5: عدد | O5: السعر | P5: القيمة | Z5: بيتادين 100 سم | AA5: 9
A6: كاب وماسك | C6: 3 | D6: =B6*C6 -> 0 | E6: حقنة بلاستيك 3سم | G6: 1 | H6: =F6*G6 -> 0 | I6: انترفال | K6: 115 | L6: =J6*K6 -> 0 | M6: محلول ملح | O6: 12 | P6: =N6*O6 -> 0 | Z6: كحول 100سم | AA6: 3
A7: قفازات جراحية | C7: 5 | D7: =B7*C7 -> 0 | E7: حقنة بلاستيك 5سم | G7: 1 | H7: =F7*G7 -> 0 | I7: ديبريفان | K7: 60 | L7: =J7*K7 -> 0 | M7: رينجر | N7: 8 | O7: 13 | P7: =N7*O7 -> 104 | Z7: سيدكس 1000 سم | AA7: 4
A8: ماكنتوش | C8: 4 | D8: 0 | E8: حقنة بلاستيك 10سم | G8: 1 | H8: 0 | I8: س.كولين | K8: 5 | L8: 0 | M8: بافيلون | O8: 10 | P8: 0 | Z8: جلايسين | AA8: 39
A9: بيتادين 100 سم | C9: 9 | D9: 0 | E9: حقنة بلاستيك 20سم | G9: 2 | H9: 0 | I9: بروستجمين سم | K9: 13 | L9: 0 | M9: تراكريام 25 | O9: 20 | P9: 0 | Z9: محلول ملح | AA9: 12
A10: كحول 100سم | C10: 3 | D10: 0 | E10: حقنة بلاستيك 50سم | G10: 3 | H10: 0 | I10: بروستجمين امبول | K10: 10 | L10: 0 | M10: سيفوبيد | O10: 51 | P10: 0 | Z10: ماء مقطر | AA10: 28
A11: سيدكس 1000 سم | C11: 4 | D11: 0 | E11: قسطرة نيلاتون | G11: 2 | H11: 0 | I11: أتروبين | K11: 5 | L11: 0 | M11: جراميسين | O11: 6 | P11: 0 | Z11: ماء اكسجين | AA11: 4
A12: جلايسين | C12: 39 | D12: 0 | E12: قسطرة فولى | G12: 12 | H12: 0 | I12: ماركين فيال سم | K12: 1 | L12: 0 | M12: كانولا | N12: 10 | O12: 4 | P12: 40 | Z12: ك يوجيل | AA12: 7
A13: محلول ملح | C13: 12 | D13: 0 | E13: قسطرة سيليكون | G13: 88 | H13: 0 | I13: ماركين أمبول | K13: 11 | L13: 0 | M13: جهاز وريد | O13: 4 | P13: 0 | Z13: شاش 5*5 | AA13: 3
A14: ماء مقطر | C14: 28 | D14: 0 | E14: قسطرة حالب | G14: 15 | H14: 0 | I14: زيلوكين | K14: 1 | L14: 0 | M14: انبوبة تخدير | O14: 14 | P14: 0 | Z14: شاش 10 * 10 | AA14: 4
A15: ماء اكسجين | C15: 4 | D15: 0 | E15: انبوبة حرف T | G15: 6 | H15: 0 | I15: هالوثان | K15: 3.25 | L15: 0 | M15: ممر هوائي | O15: 6 | P15: 0 | Z15: فوطة بطن 30 * 30 | AA15: 6
A16: ك يوجيل | C16: 7 | D16: 0 | E16: كيس بول | G16: 4 | H16: 0 | I16: ايزوفلورين | K16: 2 | L16: 0 | M16: ابرة بنج نصفى | O16: 40 | P16: 0 | Z16: غيار دريسينج 1*1 | AA16: 1
A17: شاش 5*5 | C17: 3 | D17: 0 | E17: دياثرمي | G17: 18 | H17: 0 | I17: غاز اكسجين | K17: 7 | L17: 0 | M17: ترايديل سم | O17: 2 | P17: 0 | Z17: غيار دريسينج 1*2 | AA17: 2
A18: شاش 10 * 10 | C18: 4 | D18: 0 | E18: يد دياثرمي | G18: 18 | H18: 0 | I18: دورميكام | K18: 18 | L18: 0 | M18: سيفوبيد | O18: 51 | P18: 0 | Z18: غيار دريسينج 18*35 | AA18: 5
A19: فوطة بطن 30 * 30 | C19: 6 | D19: 0 | E19: فاكريل | G19: 25 | H19: 0 | I19: فنتاتيل | K19: 7 | L19: 0 | M19: سولباسيف | O19: 53 | P19: 0 | Z19: رباط شاش صغير | AA19: 5
A20: غيار دريسينج 1*1 | C20: 1 | D20: 0 | E20: برولين | G20: 14 | H20: 0 | I20: بثدين | K20: 2 | L20: 0 | P20: 0 | Z20: رباط شاش كبير | AA20: 5
A21: غيار دريسينج 1*2 | C21: 2 | D21: 0 | E21: كرومك | G21: 14 | H21: 0 | I21: مورفين | K21: 1 | L21: 0 | P21: 0 | Z21: رباط ضاغط كبير 15سم | AA21: 10
A22: غيار دريسينج 18*35 | C22: 5 | D22: 0 | E22: خيط حرير | G22: 12 | H22: 0 | I22: بريمبران | K22: 3 | L22: 0 | P22: 0 | Z22: فارما بور 10*10 | AA22: 2
A23: رباط شاش صغير | C23: 5 | D23: 0 | E23: شاش 10*10 معقم | G23: 4 | H23: 0 | I23: سولوكورتيف | K23: 55 | L23: 0 | P23: 0 | Z23: فارما بور 10*15 | AA23: 3
A24: رباط شاش كبير | C24: 5 | D24: 0 | E24: مفرش سرير | G24: 6 | H24: 0 | I24: ديكادرون | K24: 15 | L24: 0 | P24: 0 | Z24: فارما بور 10*20 | AA24: 4
A25: رباط ضاغط كبير 15سم | C25: 10 | D25: 0 | E25: ريدى فاك ( درنقة ) | G25: 42 | H25: 0 | I25: ادرينالين | K25: 6 | L25: 0 | P25: 0 | Z25: فارما بور 10*25 | AA25: 4
A26: فارما بور 10*10 | C26: 2 | D26: 0 | E26: رايل | G26: 4 | H26: 0 | I26: لازكس 20 جم | K26: 6 | L26: 0 | P26: 0 | Z26: فارما بور 10*30 | AA26: 5
A27: فارما بور 10*15 | C27: 3 | D27: 0 | E27: جوانتى فايروس | G27: 16 | H27: 0 | I27: سنتوسينون 10 وحدة | K27: 7 | L27: 0 | P27: 0 | Z27: فارما بور 10*35 | AA27: 5
A28: فارما بور 10*20 | C28: 4 | D28: 0 | E28: شاش فازلين ( استرباد) | G28: 4 | H28: 0 | I28: مترجين | K28: 2 | L28: 0 | P28: 0 | Z28: بلاستر حرير بالمتر | AA28: 6
A29: فارما بور 10*25 | C29: 4 | D29: 0 | E29: وير عظام | G29: 25 | H29: 0 | I29: كيناكورت | K29: 10 | L29: 0 | P29: 0 | Z29: قطن 250 جم | AA29: 20
A30: فارما بور 10*30 | C30: 5 | D30: 0 | E30: دباسة | G30: 115 | H30: 0 | I30: امينوفللين | K30: 6 | L30: 0 | P30: 0 | Z30: مشرط | AA30: 2
A31: فارما بور 10*35 | C31: 5 | D31: 0 | E31: صوف بان ( سبان ) | G31: 8 | H31: 0 | I31: كالسيوم | K31: 6 | L31: 0 | P31: 0 | Z31: بكرة حرير كاملة | AA31: 31
A32: بلاستر حرير بالمتر | C32: 6 | D32: 0 | E32: وصلة ثلاثية | G32: 5 | H32: 0 | I32: فولتارين | K32: 8 | L32: 0 | P32: 0 | Z32: حقنة بلاستيك 3سم | AA32: 1
A33: قطن 250 جم | C33: 20 | D33: 0 | H33: 0 | I33: افدرين | K33: 5 | L33: 0 | P33: 0 | Z33: حقنة بلاستيك 5سم | AA33: 1
A34: مشرط | C34: 2 | D34: 0 | H34: 0 | I34: فنتالين | K34: 7 | L34: 0 | P34: 0 | Z34: حقنة بلاستيك 10سم | AA34: 1
A35: بكرة حرير كاملة | C35: 31 | D35: 0 | H35: 0 | I35: نالوفين | K35: 7 | L35: 0 | P35: 0 | Z35: حقنة بلاستيك 20سم | AA35: 2
D36: 0 | H36: 0 | I36: فورتاكورتين | K36: 5 | L36: 0 | P36: 0 | Z36: حقنة بلاستيك 50سم | AA36: 3
Z37: قسطرة نيلاتون | AA37: 2
A38: الإجمالى | D38: =SUM($D$6:$D$36) -> 0 | H38: =SUM($H$6:$H$36) -> 0 | L38: =SUM($L$6:$L$36) -> 0 | P38: =SUM($P$6:$P$36) -> 144 | Q38: =D38+H38+L38+P38 -> 144 | Z38: قسطرة فولى | AA38: 12
Z39: قسطرة سيليكون | AA39: 88
Z40: قسطرة حالب | AA40: 15
Z41: انبوبة حرف T | AA41: 6
Z42: كيس بول | AA42: 4
Z43: دياثرمي | AA43: 18
Z44: يد دياثرمي | AA44: 18
Z45: فاكريل | AA45: 25
Z46: برولين | AA46: 14
Z47: كرومك | AA47: 14
Z48: خيط حرير | AA48: 12
Z49: شاش 10*10 معقم | AA49: 4
Z50: مفرش سرير | AA50: 6
Z51: ريدى فاك ( درنقة ) | AA51: 42
Z52: رايل | AA52: 4
Z53: جوانتى فايروس | AA53: 16
Z54: شاش فازلين ( استرباد) | AA54: 4
Z55: وير عظام | AA55: 25
Z56: دباسة | AA56: 115
Z57: صوف بان ( سبان ) | AA57: 8
Z58: وصلة ثلاثية | AA58: 5
Z59: انترفال | AA59: 115
Z60: ديبريفان | AA60: 60
Z61: س.كولين | AA61: 5
Z62: بروستجمين سم | AA62: 13
Z63: بروستجمين امبول | AA63: 10
Z64: أتروبين | AA64: 5
Z65: ماركين فيال سم | AA65: 1
Z66: ماركين أمبول | AA66: 11
Z67: زيلوكين | AA67: 1
Z68: هالوثان | AA68: 3.25
Z69: ايزوفلورين | AA69: 2
Z70: غاز اكسجين | AA70: 7
Z71: دورميكام | AA71: 18
Z72: فنتاتيل | AA72: 7
Z73: بثدين | AA73: 2
Z74: مورفين | AA74: 1
Z75: بريمبران | AA75: 3
Z76: سولوكورتيف | AA76: 55
Z77: ديكادرون | AA77: 15
Z78: ادرينالين | AA78: 6
Z79: لازكس 20 جم | AA79: 6
Z80: سنتوسينون 10 وحدة | AA80: 7
Z81: مترجين | AA81: 2
Z82: كيناكورت | AA82: 10
Z83: امينوفللين | AA83: 6
Z84: كالسيوم | AA84: 6
Z85: فولتارين | AA85: 8
Z86: افدرين | AA86: 5
Z87: فنتالين | AA87: 7
Z88: نالوفين | AA88: 7
Z89: فورتاكورتين | AA89: 5
Z90: محلول ملح | AA90: 12
Z91: رينجر | AA91: 13
Z92: بافيلون | AA92: 10
Z93: تراكريام 25 | AA93: 20
Z94: سيفوبيد | AA94: 51
Z95: جراميسين | AA95: 6
Z96: كانولا | AA96: 4
Z97: جهاز وريد | AA97: 4
Z98: انبوبة تخدير | AA98: 14
Z99: ممر هوائي | AA99: 6
Z100: ابرة بنج نصفى | AA100: 40
Z101: ترايديل سم | AA101: 2
Z102: سولباسيف | AA102: 53

Sheet فتح الغرفة
A2: تصنيف العمليات | B2: فتح الغرفة العمليات
A5: عملية كشك | B5: 130
A6: عملية صغرى | B6: 200
A7: عملية متوسطة | B7: 275
A8: عملية كبرى | B8: 375
A9: عملية ذات مهارة | B9: 440
A10: عملية ذات طابغ خاص | B10: 715

Sheet الاقامة
B5: رقم الغرفة | C5: سعر الاقامة
B6: 401 | C6: 120
B7: 402 | C7: 120
B8: 403 | C8: 300
B9: 404 | C9: 300
B10: 405 | C10: 150
B11: 406 | C11: 120
B12: 407 | C12: 120
B13: 408 | C13: 120
B14: 409 | C14: 120
B15: 501 | C15: 120
B16: 502 | C16: 120
B17: 503 | C17: 300
B18: 504 | C18: 300
B19: 505 | C19: 150
B20: 506 | C20: 120
B21: 507 | C21: 120
B22: 508 | C22: 120
B23: 509 | C23: 120

Sheet جهاز الاشعة
A7: عملية صغرى | B7: 190
A8: عملية متوسطة | B8: 190
A9: عملية كبرى | B9: 290
A10: عملية ذات مهارة | B10: 350
A11: عملية ذات طابع خاص | B11: 540
